bitfinex/quotes_SOLUSD_20220103
["timestamp","ask_amount","ask_price","bid_price","bid_amount"]
[1641178604067,4.3703172,173.59,173.57,39.261675]
[1641178604568,4.3703172,173.59,173.58,8.6395]
[1641178604967,4.3703172,173.59,173.58,9.3995]
[1641178605768,4.3703172,173.59,173.58,10.82619368]
[1641178605969,4.3703172,173.59,173.58,18.92619368]
[1641178610675,8.6393,173.66,173.58,18.92619368]
[1641178611878,8.6393,173.66,173.64,0.47965166]
[1641178612076,6.06439994,173.65,173.64,0.47965166]
[1641178616683,2.89888135,173.67,173.64,0.47965166]
[1641178616684,8.6385,173.68,173.64,25.72562569]
[1641178616986,8.6385,173.68,173.64,31.29162569]
[1641178617186,8.6385,173.68,173.64,6.04565166]
[1641178618387,8.6385,173.68,173.64,0.73965166]
[1641178618586,8.6385,173.68,173.64,0.47965166]
[1641178620990,9.1385,173.68,173.64,0.47965166]
[1641178630619,8.36,173.58,173.56,2.95551397]
[1641178630819,6.06439994,173.57,173.56,2.95551397]
[1641178631023,8.54875114,173.57,173.56,2.95551397]
[1641178631221,6.06439994,173.57,173.55,2.9683863]
[1641178631520,6.56439994,173.57,173.55,2.9683863]
[1641178631721,6.06439994,173.57,173.55,2.9683863]
[1641178632122,14.70799994,173.57,173.55,2.9683863]
[1641178632323,14.70799994,173.57,173.51,31.56862572]
[1641178632521,14.70799994,173.57,173.52,0.5]
[1641178632522,2.43950597,173.56,173.52,0.5]
[1641178632721,8.36,173.58,173.51,31.56862572]
[1641178633123,8.6435,173.57,173.51,32.06862572]
[1641178633726,8.6435,173.57,173.52,2.9683863]
[1641178634126,8.6435,173.57,173.52,3.2283863]
[1641178634525,2.46362197,173.56,173.52,3.2283863]
[1641178635328,2.46362197,173.56,173.52,0.26]
[1641178635530,2.46362197,173.56,173.51,35.29701202]
[1641178637929,2.46362197,173.56,173.51,35.03701202]
[1641178638833,2.46362197,173.56,173.51,32.06862572]
[1641178639231,2.46362197,173.56,173.51,32.32862572]
[1641178639631,8.6435,173.57,173.51,31.82862572]
[1641178640032,8.6435,173.57,173.51,32.32862572]
[1641178640235,8.6435,173.57,173.51,31.82862572]
[1641178640632,11.46951489,173.56,173.51,31.82862572]
[1641178640833,8.6441,173.56,173.51,31.56862572]
[1641178641032,8.36,173.58,173.51,31.56862572]
[1641178641435,8.36,173.58,173.51,32.06862572]
[1641178641933,17.0029,173.58,173.51,32.06862572]
[1641178642135,8.36,173.58,173.51,32.32862572]
[1641178642535,8.36,173.58,173.51,35.29701202]
[1641178643334,8.36,173.58,173.51,43.93941202]
[1641178643535,11.10572865,173.58,173.51,43.93941202]
[1641178643834,11.10572865,173.58,173.51,35.29701202]
[1641178644541,8.36,173.58,173.51,43.93931202]
[1641178644938,8.36,173.58,173.51,52.03931202]
[1641178645342,8.36,173.58,173.52,2.9683863]
[1641178645538,8.36,173.58,173.52,10.3273863]
[1641178645839,8.36,173.58,173.52,19.4688863]
[1641178646138,8.36,173.58,173.53,11.0683863]
[1641178646537,8.36,173.58,173.53,11.8283863]
[1641178646938,8.36,173.58,173.54,2.9683863]
[1641178647441,8.36,173.58,173.54,3.4683863]
[1641178647641,8.36,173.58,173.54,3.7283863]
[1641178649341,8.36,173.58,173.54,0.76]
[1641178649541,8.36,173.58,173.54,0.5]
[1641178649742,8.36,173.58,173.53,12.3695863]
[1641178649942,8.36,173.58,173.53,3.7283863]
[1641178650649,8.36,173.58,173.53,0.76]
[1641178650944,8.36,173.58,173.53,0.26]
[1641178651145,8.36,173.58,173.52,3.7283863]
[1641178652949,8.36,173.58,173.53,2.9683863]
[1641178653449,8.36,173.58,173.53,3.7283863]
[1641178654248,8.36,173.58,173.53,3.4683863]
[1641178654647,10.74134392,173.58,173.53,3.4683863]
[1641178655049,10.74134392,173.58,173.53,0.5]
[1641178655450,10.74134392,173.58,173.52,3.4683863]
[1641178655675,10.74134392,173.58,173.52,9.4693863]
[1641178655848,8.36,173.58,173.53,8.1]
[1641178656048,8.36,173.58,173.53,8.36]
[1641178656351,8.36,173.58,173.53,11.8283863]
[1641178656750,7.86,173.58,173.53,11.8283863]
[1641178657553,7.86,173.58,173.55,2.9683863]
[1641178657951,7.86,173.58,173.55,3.7283863]
[1641178660857,7.86,173.58,173.55,0.76]
[1641178661058,7.86,173.58,173.55,0.5]
[1641178661257,7.86,173.58,173.54,3.7283863]
[1641178663564,7.86,173.58,173.55,2.9683863]
[1641178664260,7.86,173.58,173.53,2.9683863]
[1641178664962,7.86,173.58,173.53,3.2283863]
[1641178665460,7.86,173.58,173.53,3.7283863]
[1641178665664,10.40592875,173.58,173.53,3.7283863]
[1641178666062,10.40592875,173.58,173.53,0.76]
[1641178666463,7.86,173.58,173.52,3.7283863]
[1641178667066,7.86,173.58,173.53,2.9683863]
[1641178667366,7.86,173.58,173.53,11.5683863]
[1641178667568,7.86,173.58,173.53,11.8283863]
[1641178667966,7.86,173.58,173.54,2.9683863]
[1641178668365,7.86,173.58,173.54,3.7283863]
[1641178669968,7.86,173.58,173.54,0.76]
[1641178670367,7.86,173.58,173.54,0.26]
[1641178670566,7.86,173.58,173.53,11.8283863]
[1641178670771,7.86,173.58,173.54,2.9683863]
[1641178670970,7.86,173.58,173.54,3.7283863]
[1641178671769,7.86,173.58,173.54,0.76]
[1641178671968,7.86,173.58,173.53,11.0683863]
[1641178671969,7.86,173.58,173.53,11.8283863]
[1641178674472,7.86,173.58,173.53,3.7283863]
[1641178674974,7.86,173.58,173.53,0.76]
[1641178675375,7.86,173.58,173.52,3.7283863]
[1641178678503,7.86,173.58,173.53,2.9683863]
[1641178678902,7.86,173.58,173.53,3.7283863]
[1641178679406,7.86,173.58,173.53,3.4683863]
[1641178680806,7.86,173.58,173.54,2.9683863]
[1641178681005,7.86,173.58,173.54,3.2283863]
[1641178682604,7.86,173.58,173.54,2.9683863]
[1641178683307,7.86,173.58,173.53,2.9683863]
[1641178683608,2.99964047,173.57,173.53,2.9683863]
[1641178684006,2.99964047,173.57,173.53,3.2283863]
[1641178684305,2.99964047,173.57,173.53,0.26]
[1641178684505,2.99964047,173.57,173.52,3.2283863]
[1641178685307,11.64314047,173.57,173.52,3.2283863]
[1641178687912,11.64314047,173.57,173.52,3.7283863]
[1641178688110,11.64314047,173.57,173.52,3.2283863]
[1641178688511,8.6435,173.57,173.52,3.2283863]
[1641178691515,7.86,173.58,173.53,1.42669368]
[1641178692012,7.86,173.58,173.53,5.15507998]
[1641178693014,7.86,173.58,173.54,2.9683863]
[1641178693415,7.86,173.58,173.55,2.9683863]
[1641178693614,6.06439994,173.57,173.55,3.2283863]
[1641178693815,3.03219997,173.57,173.55,3.2283863]
[1641178694715,3.03219997,173.57,173.56,2.9683863]
[1641178695116,6.06439994,173.57,173.56,3.2283863]
[1641178695315,6.06439994,173.57,173.56,0.26]
[1641178695516,6.06439994,173.57,173.55,3.2283863]
[1641178695916,6.06439994,173.57,173.55,0.26]
[1641178696117,6.06439994,173.57,173.54,3.7283863]
[1641178698824,6.06439994,173.57,173.55,2.9683863]
[1641178699024,6.06439994,173.57,173.55,3.2283863]
[1641178699626,7.86,173.58,173.55,3.2283863]
[1641178699830,7.86,173.58,173.55,3.7283863]
[1641178700228,7.86,173.58,173.55,30.55554242]
[1641178700628,7.86,173.58,173.55,30.05554242]
[1641178700828,7.86,173.58,173.55,30.55554242]
[1641178701231,7.86,173.58,173.55,2.9683863]
[1641178701831,7.86,173.58,173.55,3.4683863]
[1641178702029,7.86,173.58,173.55,0.5]
[1641178702428,7.86,173.58,173.54,3.4683863]
[1641178702629,7.86,173.58,173.54,3.7283863]
[1641178702830,7.86,173.58,173.55,2.9683863]
[1641178703029,7.86,173.58,173.55,3.2283863]
[1641178703245,7.86,173.58,173.55,0.26]
[1641178703432,10.45086278,173.58,173.55,0.26]
[1641178704134,10.45086278,173.58,173.54,3.7283863]
[1641178705558,7.86,173.58,173.54,3.7283863]
[1641178705958,7.86,173.58,173.55,2.9683863]
[1641178706359,7.86,173.58,173.55,3.7283863]
[1641178708259,7.86,173.58,173.55,0.76]
[1641178708460,7.86,173.58,173.55,0.26]
[1641178708661,6.06439994,173.57,173.54,3.2283863]
[1641178708860,6.06439994,173.57,173.55,2.9683863]
[1641178709061,6.06439994,173.57,173.55,3.2283863]
[1641178709260,6.06439994,173.57,173.55,3.7283863]
[1641178709562,6.06439994,173.57,173.55,0.76]
[1641178709763,6.06439994,173.57,173.54,3.2283863]
[1641178709962,6.06439994,173.57,173.54,3.7283863]
[1641178710165,6.06439994,173.57,173.55,2.9683863]
[1641178710361,6.06439994,173.57,173.55,3.4683863]
[1641178710560,7.86,173.58,173.55,3.7283863]
[1641178710761,7.86,173.58,173.55,3.2283863]
[1641178711360,7.86,173.58,173.55,3.7283863]
[1641178713677,6.06439994,173.57,173.55,3.7283863]
[1641178714279,6.06439994,173.57,173.55,3.2283863]
[1641178714681,6.06439994,173.57,173.55,3.7283863]
[1641178714880,6.06439994,173.57,173.55,3.2283863]
[1641178715481,6.06439994,173.57,173.55,0.26]
[1641178715713,6.06439994,173.57,173.54,2.9683863]
[1641178716984,6.56439994,173.57,173.52,2.9683863]
[1641178717386,15.20779994,173.57,173.52,2.9683863]
[1641178717985,15.20779994,173.57,173.52,3.2283863]
[1641178720289,14.70779994,173.57,173.52,3.2283863]
[1641178720689,14.70779994,173.57,173.52,2.9683863]
[1641178720887,23.30779994,173.57,173.52,2.9683863]
[1641178721689,23.30779994,173.57,173.49,5.03998403]
[1641178723489,23.30779994,173.57,173.49,5.29998403]
[1641178724295,23.30779994,173.57,173.49,5.03998403]
[1641178727790,24.73449362,173.57,173.49,5.03998403]
[1641178727992,24.73449362,173.57,173.49,5.29998403]
[1641178728994,24.99449362,173.57,173.49,5.29998403]
[1641178734398,33.49409362,173.57,173.49,5.29998403]
[1641178735600,5.29998403,173.49,173.46,2.9683863]
[1641178736000,31.0,173.47,173.41,4.88428158]
[1641178736200,2.86789789,173.46,173.41,4.88428158]
[1641178736400,8.1,173.45,173.41,4.88428158]
[1641178736598,8.1,173.45,173.36,10.28382211]
[1641178736801,8.6,173.45,173.36,10.28382211]
[1641178737203,8.6,173.45,173.36,4.88428158]
[1641178738235,8.6,173.45,173.35,72.6457]
[1641178738236,2.7654057,173.4,173.35,72.6457]
[1641178738435,2.7654057,173.4,173.32,27.41210065]
[1641178738634,2.7654057,173.4,173.35,0.26]
[1641178738835,3.2654057,173.4,173.32,28.17210065]
[1641178739036,2.7654057,173.4,173.32,28.17210065]
[1641178739236,8.653,173.39,173.32,28.17210065]
[1641178741139,2.20404419,173.39,173.32,28.17210065]
[1641178741438,2.20404419,173.39,173.32,23.28781907]
[1641178742942,73.1288,173.43,173.32,23.28781907]
[1641178743243,8.1,173.45,173.32,23.28781907]
[1641178743640,8.6,173.45,173.32,23.28781907]
[1641178744144,2.99987908,173.44,173.32,23.28781907]
[1641178744341,8.6511,173.42,173.32,31.93931907]
[1641178744742,2.43203053,173.41,173.32,31.93931907]
[1641178745641,2.43203053,173.41,173.35,4.88428158]
[1641178745846,2.43203053,173.41,173.35,5.38428158]
[1641178746043,2.43203053,173.41,173.35,5.64428158]
[1641178746545,8.6511,173.42,173.35,5.64428158]
[1641178749046,8.6511,173.42,173.36,4.88428158]
[1641178749247,11.64834669,173.41,173.36,4.88428158]
[1641178749471,11.64834669,173.41,173.36,5.14428158]
[1641178749646,11.64834669,173.41,173.36,4.88428158]
[1641178750745,11.64834669,173.41,173.33,9.56920772]
[1641178750948,11.64834669,173.41,173.33,10.32920772]
[1641178751345,12.14834669,173.41,173.33,10.32920772]
[1641178751544,11.64834669,173.41,173.33,10.32920772]
[1641178754448,11.64834669,173.41,173.33,0.76]
[1641178754648,12.14834669,173.41,173.33,0.76]
[1641178754849,12.14834669,173.41,173.32,28.17210065]
[1641178755248,12.14834669,173.41,173.33,4.68541689]
[1641178755447,12.14834669,173.41,173.33,5.18541689]
[1641178755752,12.14834669,173.41,173.33,5.44541689]
[1641178757749,12.14834669,173.41,173.33,10.32969847]
[1641178758750,8.6515,173.41,173.33,10.32969847]
[1641178759151,16.7509,173.43,173.33,10.32969847]
[1641178759351,8.6509,173.43,173.33,10.32969847]
[1641178759952,42.23348403,173.49,173.33,23.78449847]
[1641178760152,42.23348403,173.49,173.34,1.42669368]
[1641178760351,8.649,173.46,173.34,1.92669368]
[1641178760553,8.649,173.46,173.34,2.18669368]
[1641178760758,8.649,173.46,173.35,1.42669368]
[1641178760954,11.62805667,173.46,173.38,4.88428158]
[1641178761158,13.39998403,173.49,173.39,29.5409974]
[1641178761358,8.6484,173.48,173.39,30.0409974]
[1641178761555,8.6484,173.48,173.39,30.3009974]
[1641178762358,2.81324508,173.47,173.39,38.9491974]
[1641178762558,11.46164508,173.47,173.39,38.9491974]
[1641178764784,11.46164508,173.47,173.39,43.83347898]
[1641178767889,11.46164508,173.47,173.39,38.9491974]
[1641178768893,2.81324508,173.47,173.39,38.9491974]
[1641178769492,2.81324508,173.47,173.4,4.68407888]
[1641178769893,2.81324508,173.47,173.4,5.44407888]
[1641178771295,2.81324508,173.47,173.4,18.97616046]
[1641178774501,2.81324508,173.47,173.41,4.88428158]
[1641178774903,2.81324508,173.47,173.41,5.64428158]
[1641178778112,2.81324508,173.47,173.41,0.76]
[1641178778410,2.81324508,173.47,173.41,0.26]
[1641178778612,2.81324508,173.47,173.4,9.4078]
[1641178779714,2.81324508,173.47,173.4,0.76]
[1641178779914,11.46164508,173.47,173.4,0.26]
[1641178780115,11.46164508,173.47,173.39,30.3009974]
[1641178783332,11.46164508,173.47,173.39,38.9491974]
[1641178783534,11.46164508,173.47,173.39,30.3009974]
[1641178785034,8.6484,173.47,173.39,30.3009974]
[1641178785236,8.6479,173.48,173.39,38.9492974]
[1641178785436,5.29998403,173.49,173.39,38.9492974]
[1641178787240,5.29998403,173.49,173.4,4.68197603]
[1641178787537,5.29998403,173.49,173.4,14.08927603]
[1641178788042,13.94748403,173.49,173.4,14.08927603]
[1641178788439,2.72425667,173.48,173.4,18.97355761]
[1641178789040,2.72425667,173.48,173.4,14.29158158]
[1641178790742,2.72425667,173.48,173.4,18.97369723]
[1641178791445,2.72425667,173.48,173.4,14.29158158]
[1641178791845,11.37215667,173.48,173.4,14.29158158]
[1641178792144,11.37215667,173.48,173.4,9.4073]
[1641178795948,11.19915667,173.48,173.4,9.4073]
[1641178797555,11.19915667,173.48,173.4,0.76]
[1641178797952,11.19915667,173.48,173.39,35.18527898]
[1641178798555,11.19915667,173.48,173.39,30.3009974]
[1641178799357,11.19915667,173.48,173.39,38.9492974]
[1641178800758,11.19915667,173.48,173.39,38.6892974]
[1641178802059,11.19915667,173.48,173.39,38.9492974]
[1641178803060,11.19915667,173.48,173.39,9.4083]
[1641178803261,11.19915667,173.48,173.39,0.5]
[1641178803461,11.19915667,173.48,173.37,14.03318158]
[1641178803762,11.19915667,173.48,173.37,5.38428158]
[1641178803961,11.69915667,173.48,173.37,5.38428158]
[1641178804363,11.69915667,173.48,173.37,0.5]
[1641178804763,11.69915667,173.48,173.34,5.38428158]
[1641178805165,8.6521,173.41,173.34,5.38428158]
[1641178805363,2.88879101,173.4,173.34,5.38428158]
[1641178805664,2.88879101,173.4,173.34,4.88428158]
[1641178805863,2.88879101,173.4,173.31,490.37824887]
[1641178806063,2.88879101,173.4,173.31,490.87824887]
[1641178806264,2.88879101,173.4,173.32,28.23918416]
[1641178806464,11.54109101,173.4,173.32,28.73918416]
[1641178809167,11.54109101,173.4,173.32,28.99918416]
[1641178809589,11.54109101,173.4,173.32,33.88346574]
[1641178810491,11.54109101,173.4,173.32,42.53526574]
[1641178810690,11.54109101,173.4,173.32,5.64428158]
[1641178811592,11.54109101,173.4,173.32,30.23055457]
[1641178812493,8.6523,173.4,173.32,30.23055457]
[1641178812896,8.6515,173.41,173.32,25.34627299]
[1641178814298,8.6515,173.41,173.32,33.99797299]
[1641178816803,8.6515,173.41,173.32,25.34627299]
[1641178817605,8.6515,173.41,173.32,25.08627299]
[1641178818011,9.1515,173.41,173.32,25.08627299]
[1641178819511,8.6515,173.41,173.32,25.34627299]
[1641178821309,8.6515,173.41,173.32,33.99787299]
[1641178823510,8.6515,173.41,173.32,25.34627299]
[1641178825514,9.1515,173.41,173.32,25.34627299]
[1641178826516,9.1515,173.41,173.34,3.27068137]
[1641178826815,8.6515,173.41,173.34,3.27068137]
[1641178827014,8.6515,173.41,173.34,3.53068137]
[1641178827215,8.6515,173.41,173.35,3.27068137]
[1641178827614,8.6515,173.41,173.35,3.53068137]
[1641178828015,8.6515,173.41,173.35,0.26]
[1641178828417,8.6515,173.41,173.32,25.34627299]
[1641178829316,8.6515,173.41,173.32,33.99797299]
[1641178829618,8.6515,173.41,173.35,3.27068137]
[1641178830116,8.6515,173.41,173.35,3.53068137]
[1641178830718,74.9913,173.46,173.43,4.03278925]
[1641178830916,214.42540323,173.55,173.43,4.03278925]
[1641178830917,3.03219997,173.45,173.43,4.53278925]
[1641178831117,9.66275893,173.5,173.44,24.05673596]
[1641178831118,1.56275893,173.5,173.44,24.05673596]
[1641178831318,13.94788403,173.49,173.44,24.05673596]
[1641178831517,13.94788403,173.49,173.44,24.81673596]
[1641178832018,13.94788403,173.49,173.44,0.76]
[1641178832217,16.81177948,173.49,173.44,0.76]
[1641178832419,16.81177948,173.49,173.43,4.29278925]
[1641178835745,13.94788403,173.49,173.43,4.29278925]
[1641178836921,5.29998403,173.49,173.43,4.79278925]
[1641178837323,5.29998403,173.49,173.43,6.21948293]
[1641178838123,5.29998403,173.49,173.43,14.31948293]
[1641178838525,5.29998403,173.49,173.43,22.96588293]
[1641178839122,5.29998403,173.49,173.48,28.63476367]
[1641178839525,5.29998403,173.49,173.48,38.03896367]
[1641178840327,0.8912924,173.49,173.48,41.30964504]
[1641178840930,0.8912924,173.49,173.48,38.03896367]
[1641178842329,15.96,173.58,173.48,9.4042]
[1641178842529,7.86,173.58,173.48,18.93089368]
[1641178843354,7.86,173.58,173.49,25.4084689]
[1641178843552,7.86,173.58,173.54,3.1974036]
[1641178843757,7.86,173.58,173.54,11.8384036]
[1641178843955,7.86,173.58,173.54,12.5984036]
[1641178844561,7.86,173.58,173.55,3.1974036]
[1641178844756,6.06439994,173.57,173.55,3.1974036]
[1641178844957,6.06439994,173.57,173.55,3.9574036]
[1641178845155,7.86,173.58,173.55,3.9574036]
[1641178845360,7.86,173.58,173.55,0.76]
[1641178845558,102.6408,173.64,173.58,5.06796066]
[1641178845759,1.56275893,173.69,173.58,5.06796066]
[1641178846057,4.18180885,173.69,173.59,1.42669368]
[1641178846261,1.56275893,173.69,173.58,5.82796066]
[1641178846660,8.1,173.74,173.6,3.1974036]
[1641178846859,8.6,173.74,173.6,3.6974036]
[1641178847059,8.6,173.74,173.62,8.6366]
[1641178847060,8.6368,173.73,173.62,8.6366]
[1641178847259,2.76310863,173.72,173.62,8.6366]
[1641178847459,2.76310863,173.72,173.63,31.87108071]
[1641178847658,2.76310863,173.72,173.63,3.1974036]
[1641178847860,2.76310863,173.72,173.63,3.9574036]
[1641178848061,2.76310863,173.72,173.63,3.6974036]
[1641178848461,2.76310863,173.72,173.63,0.5]
[1641178848861,2.76310863,173.72,173.62,9.1366]
[1641178849363,2.76310863,173.72,173.62,9.3966]
[1641178850563,2.76310863,173.72,173.62,10.82329368]
[1641178851060,2.76310863,173.72,173.62,9.3966]
[1641178851261,2.76310863,173.72,173.62,10.82329368]
[1641178851464,2.76310863,173.72,173.62,9.3966]
[1641178851662,11.40030863,173.72,173.62,0.76]
[1641178851861,11.40030863,173.72,173.62,1.68669368]
[1641178852064,11.40030863,173.72,173.62,0.76]
[1641178852464,11.40030863,173.72,173.62,0.5]
[1641178852661,11.90030863,173.72,173.61,3.9574036]
[1641178852860,11.90030863,173.72,173.61,3.6974036]
[1641178853463,11.90030863,173.72,173.61,0.5]
[1641178853862,11.90030863,173.72,173.6,3.1974036]
[1641178853863,11.90030863,173.72,173.6,3.6974036]
[1641178854065,11.90030863,173.72,173.6,3.9574036]
[1641178854563,11.40030863,173.72,173.6,3.9574036]
[1641178854965,11.90030863,173.72,173.6,3.9574036]
[1641178855163,11.40030863,173.72,173.6,3.9574036]
[1641178855364,11.90030863,173.72,173.6,3.9574036]
[1641178856164,11.40030863,173.72,173.6,3.9574036]
[1641178856365,11.90030863,173.72,173.6,3.6974036]
[1641178856667,20.00030863,173.72,173.6,3.1974036]
[1641178857064,19.50030863,173.72,173.6,3.1974036]
[1641178857265,20.00030863,173.72,173.6,3.6974036]
[1641178857468,20.00030863,173.72,173.6,0.76]
[1641178857666,20.00030863,173.72,173.6,0.26]
[1641178857866,20.00030863,173.72,173.58,5.82796066]
[1641178858367,20.00030863,173.72,173.62,3.1974036]
[1641178858568,20.00030863,173.72,173.62,3.4574036]
[1641178859171,21.42700231,173.72,173.67,3.1974036]
[1641178859668,21.42700231,173.72,173.67,0.26]
[1641178860072,21.42700231,173.72,173.66,3.4574036]
[1641178860670,21.42700231,173.72,173.66,3.1974036]
[1641178860869,21.42700231,173.72,173.62,4.88428158]
[1641178861170,21.68700231,173.72,173.62,4.88428158]
[1641178861570,21.68700231,173.72,173.6,4.88428158]
[1641178861971,21.68700231,173.72,173.6,5.14428158]
[1641178868172,30.51190231,173.72,173.6,5.14428158]
[1641178870675,30.25190231,173.72,173.6,5.14428158]
[1641178871476,30.25190231,173.72,173.6,0.26]
[1641178871879,30.51190231,173.72,173.58,5.32796066]
[1641178872080,30.25190231,173.72,173.58,5.32796066]
[1641178872481,28.82520863,173.72,173.58,5.32796066]
[1641178872980,28.82520863,173.72,173.58,5.82796066]
[1641178873780,30.25190231,173.72,173.58,5.82796066]
[1641178874380,30.25190231,173.72,173.58,5.32796066]
[1641178877582,21.42700231,173.72,173.58,5.32796066]
[1641178880386,21.42700231,173.72,173.58,5.82796066]
[1641178881389,21.42700231,173.72,173.58,5.32796066]
[1641178883491,20.00030863,173.72,173.58,5.32796066]
[1641178887327,28.80500863,173.72,173.58,5.32796066]
[1641178887726,30.36776756,173.72,173.58,5.32796066]
[1641178889227,30.36776756,173.72,173.58,5.82796066]
[1641178889429,21.56306756,173.72,173.58,5.82796066]
[1641178890629,20.00030863,173.72,173.58,5.82796066]
[1641178891029,21.56306756,173.72,173.58,5.82796066]
[1641178892330,20.00030863,173.72,173.58,5.56796066]
[1641178893330,20.00030863,173.72,173.58,5.06796066]
[1641178893534,126.27430863,173.72,173.58,5.06796066]
[1641178893929,134.91092529,173.72,173.58,5.06796066]
[1641178894932,136.47368422,173.72,173.58,5.06796066]
[1641178895833,1.56275893,173.71,173.58,5.06796066]
[1641178896034,8.6429,173.65,173.58,5.06796066]
[1641178896234,2.96025369,173.64,173.58,5.06796066]
[1641178896435,3.46025369,173.64,173.58,5.32796066]
[1641178896835,3.46025369,173.64,173.58,5.06796066]
[1641178897438,8.6429,173.61,173.58,5.06796066]
[1641178897638,2.83708584,173.6,173.58,5.06796066]
[1641178897838,3.33708584,173.6,173.58,5.06796066]
[1641178898042,2.83708584,173.6,173.58,5.32796066]
[1641178898642,8.643,173.59,173.58,5.32796066]
[1641178899043,11.67519997,173.59,173.58,5.32796066]
[1641178899242,14.70739994,173.59,173.58,5.32796066]
[1641178902255,14.70739994,173.59,173.58,5.06796066]
[1641178904581,8.643,173.59,173.58,5.06796066]
[1641178904982,8.643,173.59,173.58,5.32796066]
[1641178908488,14.70739994,173.59,173.58,5.32796066]
[1641178916991,11.67519997,173.59,173.58,5.32796066]
[1641178917190,8.643,173.59,173.58,5.32796066]
[1641178918192,2.83708584,173.6,173.58,5.32796066]
[1641178918895,8.6419,173.61,173.58,5.32796066]
[1641178920093,2.95829746,173.6,173.58,5.32796066]
[1641178920694,3.03219997,173.59,173.58,5.32796066]
[1641178920894,6.06439994,173.59,173.58,5.32796066]
[1641178922097,6.06439994,173.59,173.58,5.06796066]
[1641178923097,36.907,173.65,173.58,5.06796066]
[1641178923297,37.407,173.65,173.58,5.06796066]
[1641178923498,8.6416,173.61,173.58,5.32796066]
[1641178924099,2.79436862,173.63,173.58,5.32796066]
[1641178924299,0.5,173.65,173.58,5.32796066]
[1641178924501,8.6395,173.65,173.58,5.32796066]
[1641178924703,8.6395,173.65,173.58,7.25465434]
[1641178924900,8.6395,173.65,173.58,5.82796066]
[1641178925301,2.41247547,173.64,173.58,5.82796066]
[1641178925501,2.41247547,173.64,173.58,5.32796066]
[1641178926303,8.6401,173.64,173.58,5.32796066]
[1641178929933,9.1401,173.64,173.58,5.32796066]
[1641178930834,9.1401,173.64,173.58,5.06796066]
[1641178932335,9.1401,173.64,173.58,5.32796066]
[1641178932734,9.1401,173.64,173.58,5.06796066]
[1641178935239,8.6401,173.64,173.58,5.06796066]
[1641178935840,11.14870693,173.65,173.58,5.82796066]
[1641178942444,8.6397,173.65,173.59,1.42669368]
[1641178942646,8.6392,173.66,173.59,1.42669368]
[1641178942846,8.6392,173.66,173.59,0.26]
[1641178943446,11.1360488,173.66,173.58,5.82796066]
[1641178943646,11.1360488,173.66,173.59,1.42669368]
[1641178943847,11.1360488,173.66,173.58,5.82796066]
[1641178944448,11.1360488,173.66,173.59,1.42669368]
[1641178944845,11.1360488,173.66,173.59,0.26]
[1641178945445,11.1360488,173.66,173.58,5.82796066]
[1641178950156,11.1360488,173.66,173.58,5.32796066]
[1641178950355,11.1360488,173.66,173.58,5.82796066]
[1641178950758,11.1360488,173.66,173.58,5.32796066]
[1641178950962,11.1360488,173.66,173.58,5.82796066]
[1641178951255,11.1360488,173.66,173.58,5.32796066]
[1641178951454,11.1360488,173.66,173.59,3.1058216]
[1641178951855,11.1360488,173.66,173.59,3.3658216]
[1641178952259,11.1360488,173.66,173.59,3.8658216]
[1641178952661,11.1360488,173.66,173.59,3.3658216]
[1641178952861,11.1360488,173.66,173.59,4.7187216]
[1641178953361,11.1360488,173.66,173.59,5.2187216]
[1641178953563,11.1360488,173.66,173.59,4.7187216]
[1641178954164,11.1360488,173.66,173.59,5.2187216]
[1641178954774,11.1360488,173.66,173.59,4.7187216]
[1641178954978,11.1360488,173.66,173.59,3.1058216]
[1641178955176,19.2360488,173.66,173.59,3.1058216]
[1641178955375,19.7360488,173.66,173.59,3.1058216]
[1641178955792,19.7360488,173.66,173.58,5.06796066]
[1641178956395,19.7360488,173.66,173.58,5.32796066]
[1641178956592,21.0153488,173.66,173.58,5.32796066]
[1641178957294,21.0153488,173.66,173.58,5.82796066]
[1641178957496,21.0153488,173.66,173.58,5.32796066]
[1641178957694,20.5153488,173.66,173.58,5.32796066]
[1641178957894,21.0153488,173.66,173.58,5.82796066]
[1641178958295,21.0153488,173.66,173.58,5.32796066]
[1641178958898,21.0153488,173.66,173.58,5.82796066]
[1641178959199,21.0153488,173.66,173.58,5.32796066]
[1641178962001,21.0153488,173.66,173.58,5.82796066]
[1641178962202,21.0153488,173.66,173.58,5.32796066]
[1641178962403,21.0153488,173.66,173.58,8.43378226]
[1641178962704,21.0153488,173.66,173.58,8.17378226]